bitfinex-derivatives/quotes_ETHF0:USTF0_20250830
["timestamp","ask_amount","ask_price","bid_price","bid_amount"]
[1756534668993,0.20457901,4376.5,4376.4,0.235]
[1756534669190,0.68647901,4376.5,4376.4,0.235]
[1756534672697,0.68637268,4376.5,4376.4,0.235]
[1756534681694,3.2078,4378.3,4376.5,0.41124]
[1756534681999,0.2006,4377.5,4377.4,0.4197]
[1756534682200,0.39502248,4377.5,4377.4,0.6537]
[1756534683096,3.2078,4378.3,4377.5,0.2269]
[1756534683400,0.2006,4377.7,4377.6,0.6537]
[1756534683593,0.2006,4377.7,4377.6,0.79942162]
[1756534683798,0.4819,4377.7,4377.6,0.79942162]
[1756534684202,3.2078,4379.0,4377.6,0.79942162]
[1756534684398,0.4819,4378.1,4378.0,3.6275]
[1756534684599,0.67619936,4378.1,4378.0,3.8615]
[1756534684800,0.2813,4378.9,4378.1,0.2269]
[1756534685004,0.39491344,4378.8,4378.7,0.4197]
[1756534685205,0.39491344,4378.8,4378.0,3.2078]
[1756534685391,0.2006,4378.2,4378.1,0.234]
[1756534685610,0.4819,4378.2,4378.1,0.4268]
[1756534685798,0.4819,4378.2,4378.1,0.6537]
[1756534686600,0.2813,4378.2,4378.1,0.6537]
[1756534686804,0.4819,4378.2,4378.1,0.4197]
[1756534687101,0.4819,4378.2,4378.1,0.6537]
[1756534692801,0.2006,4378.2,4378.0,3.2078]
[1756534693000,0.4994,4378.2,4378.1,0.234]
[1756534693499,0.4994,4378.2,4378.1,0.6482]
[1756534699414,0.2988,4379.4,4378.2,0.2251]
[1756534699616,0.2988,4379.2,4378.4,0.2251]
[1756534699816,0.1914,4378.6,4378.5,0.4222]
[1756534700113,0.68411802,4378.6,4378.5,0.6473]
[1756534701528,0.4902,4378.6,4378.5,3.8551]
[1756534705140,0.2988,4379.4,4378.5,3.63]
[1756534705332,0.2988,4379.2,4378.6,0.2251]
[1756534705533,0.4902,4378.8,4378.7,0.6473]
[1756534707437,0.4902,4378.8,4378.7,0.234]
[1756534707835,0.1914,4378.8,4378.5,3.2078]
[1756534708040,0.4902,4378.7,4378.6,0.234]
[1756534708242,0.1914,4378.7,4378.5,3.2078]
[1756534708537,0.1914,4378.7,4378.6,0.234]
[1756534708741,0.1914,4378.7,4378.5,3.2078]
[1756534708941,0.4902,4378.7,4378.6,0.234]
[1756534709142,0.6844571,4378.7,4378.6,0.234]
[1756534710143,0.4902,4378.7,4378.6,0.6473]
[1756534710540,0.1914,4378.7,4378.6,0.234]
[1756534710741,0.4902,4378.7,4378.6,0.234]
[1756534710941,0.4902,4378.7,4378.6,0.6473]
[1756534712243,0.4902,4378.7,4378.6,0.4133]
[1756534712434,0.4902,4378.7,4378.6,0.6473]
[1756534715949,3.2078,4380.0,4378.6,0.4222]
[1756534716150,0.4902,4379.2,4379.1,3.2078]
[1756534716455,0.4902,4379.2,4379.1,3.4418]
[1756534716947,0.4902,4379.2,4379.1,3.6669]
[1756534717251,0.4902,4379.2,4379.1,3.8551]
[1756534718049,0.3051,4379.9,4379.1,3.63]
[1756534718249,0.493,4379.3,4379.2,0.4201]
[1756534718446,0.493,4379.3,4379.2,0.6541]
[1756534720049,0.6945414,4379.3,4379.2,0.6541]
[1756534720250,0.6945414,4379.3,4379.2,0.4201]
[1756534720449,0.6945414,4379.3,4379.2,0.6541]
[1756534720752,0.6945414,4379.3,4379.2,0.4201]
[1756534720944,0.6945414,4379.3,4379.2,0.4283]
[1756534721445,0.6945414,4379.3,4379.2,0.6541]
[1756534722250,0.6945414,4379.3,4379.1,3.2078]
[1756534722550,0.493,4379.3,4379.2,0.234]
[1756534722749,0.68420976,4379.3,4379.2,0.234]
[1756534724252,0.68408317,4379.3,4379.2,0.234]
[1756534725553,0.3051,4379.2,4379.1,3.2078]
[1756534725747,0.68408317,4379.2,4379.1,3.4418]
[1756534726747,0.68408317,4379.2,4379.1,3.6676]
[1756534726948,0.68408317,4379.2,4379.1,3.4418]
[1756534727652,0.493,4379.2,4379.1,3.4418]
[1756534727850,0.683887,4379.2,4379.1,3.4418]
[1756534728655,0.683887,4379.2,4379.1,3.2078]
[1756534728851,0.68389481,4379.2,4379.1,3.4418]
[1756534729960,0.68389481,4379.2,4379.1,3.8619]
[1756534731056,0.19089481,4379.2,4379.1,3.8619]
[1756534731963,0.3051,4379.9,4379.3,0.41097]
[1756534732253,0.3051,4380.3,4379.8,3.2078]
[1756534732451,0.493,4379.9,4379.8,3.4021]
[1756534732647,0.6837311,4379.9,4379.8,3.6361]
[1756534733060,0.6837311,4379.9,4379.8,3.8619]
[1756534733758,0.3051,4381.1,4379.8,3.6361]
[1756534733960,0.3051,4380.9,4379.9,0.2258]
[1756534734257,0.3051,4380.7,4380.1,0.2258]
[1756534734458,0.493,4380.3,4380.2,0.6541]
[1756534734659,0.6837306,4380.3,4380.2,0.6541]
[1756534734860,0.68373308,4380.3,4380.2,0.6541]
[1756534736360,0.68373308,4380.3,4380.2,0.80356212]
[1756534741261,0.19073308,4380.3,4380.2,0.80356212]
[1756534741961,0.68373308,4380.3,4380.2,0.80356212]
[1756534744262,0.493,4380.3,4380.2,0.80356212]
[1756534744473,0.71264082,4380.3,4380.2,0.80356212]
[1756534747170,0.21964082,4380.3,4380.2,0.80356212]
[1756534747870,0.21958787,4380.3,4380.2,0.80356212]
[1756534749066,0.41758787,4380.3,4380.2,0.234]
[1756534749682,0.72298787,4380.3,4380.2,0.234]
[1756534751483,0.72298787,4380.3,4380.2,0.6463]
[1756534751785,0.52498787,4380.3,4380.2,0.80163773]
[1756534752582,0.21958787,4380.3,4380.2,0.80163773]
[1756534754980,0.21956378,4380.3,4380.2,0.80163773]
[1756534755785,0.21958692,4380.3,4380.2,0.80163773]
[1756534755987,2.314e-05,4380.3,4380.2,0.80163773]
[1756534756885,0.50342314,4380.3,4380.2,0.80163773]
[1756534758384,2.314e-05,4380.3,4380.2,0.57583773]
[1756534759390,0.3054,4381.9,4380.5,0.41086]
[1756534759583,0.198,4381.1,4381.0,3.3943]
[1756534759784,0.22825,4381.8,4381.0,3.5223]
[1756534759984,0.3054,4381.9,4381.0,3.5223]
[1756534760181,0.198,4381.2,4381.1,0.412]
[1756534760382,0.5034,4381.1,4381.0,3.2078]
[1756534760582,0.5034,4381.1,4381.0,3.4408]
[1756534761387,0.5034,4381.1,4381.0,3.8528]
[1756534765592,0.5034,4381.1,4381.0,3.6198]
[1756534765795,0.5034,4381.1,4381.0,3.6273]
[1756534766091,0.5034,4381.1,4381.0,3.8528]
[1756534766982,0.5034,4381.9,4381.8,0.1865]
[1756534767181,0.5034,4381.9,4381.8,0.645]
[1756534768789,0.3054,4382.6,4381.9,0.2255]
[1756534769088,0.5034,4382.6,4382.5,0.1865]
[1756534769288,0.5034,4382.6,4382.5,0.645]
[1756534769590,0.3054,4383.3,4382.6,0.2255]
[1756534769989,0.3054,4383.3,4382.6,0.15528421]
[1756534770197,0.5034,4383.3,4383.2,0.1865]
[1756534770395,0.5034,4383.3,4383.2,0.645]
[1756534771390,0.21546476,4383.3,4383.2,0.645]
[1756534772292,0.233,4385.4,4383.2,3.6273]
[1756534772293,3.2078,4384.2,4383.2,3.6273]
[1756534772498,0.5034,4383.4,4383.3,0.412]
[1756534772794,0.71870423,4383.4,4383.3,0.4195]
[1756534773000,0.3054,4383.3,4383.2,3.2078]
[1756534773195,0.5034,4383.3,4383.2,3.8528]
[1756534773390,0.3054,4383.3,4383.2,3.8528]
[1756534774093,0.5034,4383.3,4383.2,0.645]
[1756534774899,0.5034,4383.3,4383.2,0.233]
[1756534775291,0.5034,4383.3,4382.8,0.2255]
[1756534775488,0.5034,4383.3,4382.9,0.233]
[1756534775696,0.3054,4383.2,4383.0,0.233]
[1756534775898,0.5034,4383.1,4383.0,0.645]
[1756534777101,0.3005,4384.1,4383.0,0.4195]
[1756534777295,0.4925,4383.3,4383.2,3.6199]
[1756534779498,0.4925,4383.3,4383.2,3.3942]
[1756534779699,0.4925,4383.3,4383.2,3.6272]
[1756534779901,0.4925,4383.3,4383.2,3.3942]
[1756534780095,0.4925,4383.3,4383.2,3.6272]
[1756534780499,0.4925,4383.3,4383.2,3.2078]
[1756534781002,0.4925,4383.3,4383.2,3.4408]
[1756534781504,0.4925,4383.3,4383.2,3.8529]
[1756534782405,0.4925,4383.3,4383.2,3.6199]
[1756534782597,0.4925,4383.3,4383.2,3.8529]
[1756534782902,0.4925,4383.3,4383.2,0.6451]
[1756534783102,0.4925,4383.3,4383.2,3.8529]
[1756534785794,0.3005,4384.1,4383.2,3.6272]
[1756534785998,0.3005,4383.9,4383.3,0.2257]
[1756534786200,0.4925,4383.5,4383.4,0.6451]
[1756534786498,0.70752582,4383.5,4383.4,0.6451]
[1756534786904,0.70763746,4383.5,4383.4,0.6451]
[1756534788406,0.51563746,4383.5,4383.4,0.6451]
[1756534788599,0.70763746,4383.5,4383.4,0.6451]
[1756534788801,0.70763746,4383.5,4383.2,3.2078]
[1756534789005,0.4925,4383.3,4383.2,3.6199]
[1756534789203,0.4925,4383.3,4383.2,3.8529]
[1756534790104,3.2078,4384.2,4383.3,0.2257]
[1756534790305,0.192,4383.6,4383.5,0.4121]
[1756534790504,0.70777434,4383.6,4383.5,0.6451]
[1756534791400,0.21527434,4383.6,4383.5,0.6451]
[1756534791608,0.21527434,4383.8,4383.5,0.6451]
[1756534791908,0.4925,4383.9,4383.8,0.4121]
[1756534792110,0.70789842,4383.9,4383.8,0.6451]
[1756534792602,0.40739842,4383.9,4383.8,0.233]
[1756534793008,0.40739842,4383.9,4383.3,0.2257]
[1756534793204,0.4925,4383.4,4383.3,0.2257]
[1756534793406,0.70789842,4383.4,4383.3,0.6451]
[1756534793806,0.70789842,4383.4,4383.3,0.4121]
[1756534794006,0.70789842,4383.4,4383.3,0.6451]
[1756534796014,0.70789842,4383.4,4383.3,0.4121]
[1756534796314,0.70789842,4383.4,4383.3,0.6451]
[1756534797609,0.70880987,4383.4,4383.3,0.6451]
[1756534801615,0.70880987,4383.4,4383.3,0.233]
[1756534801817,0.40830987,4383.4,4383.2,3.2078]
[1756534802017,0.192,4383.4,4383.3,0.233]
[1756534802316,0.40863171,4383.4,4383.3,0.233]
[1756534802516,0.70913171,4383.4,4383.3,0.233]
[1756534802919,0.40863171,4383.4,4383.2,3.2078]
[1756534803222,0.4925,4383.4,4383.3,0.233]
[1756534803422,0.40862191,4383.4,4383.2,3.2078]
[1756534803621,0.70912191,4383.3,4383.2,3.2078]
[1756534803823,0.70912191,4383.3,4383.2,3.4408]
[1756534804922,0.70912191,4383.3,4383.2,3.8529]
[1756534805119,0.51712191,4383.3,4383.2,3.8529]
[1756534805416,0.21662191,4383.3,4383.2,3.8529]
[1756534807222,0.21676158,4383.3,4383.2,3.8529]
[1756534810631,0.21676158,4383.3,4383.2,8.08104]
[1756534810832,0.2794,4384.7,4383.4,0.2253]
[1756534811034,0.477,4384.6,4384.5,0.4233]
[1756534811231,0.477,4384.6,4384.5,0.6563]
[1756534812425,0.477,4384.6,4384.5,0.233]
[1756534815934,0.477,4384.6,4384.5,0.6563]
[1756534816236,0.477,4384.6,4384.5,0.4233]
[1756534816436,0.477,4384.6,4384.5,0.6563]
[1756534818230,0.477,4384.6,4384.5,0.4233]
[1756534818429,0.477,4384.6,4384.5,0.6563]
[1756534820639,0.477,4384.6,4384.5,0.4233]
[1756534820837,0.477,4384.6,4384.5,0.6563]
[1756534822437,0.477,4384.6,4384.5,0.4233]
[1756534822636,0.477,4384.6,4384.5,0.6563]
[1756534822838,0.68065331,4384.6,4384.5,0.6563]
[1756534823837,0.68065331,4384.6,4384.5,0.4233]
[1756534824035,0.68065331,4384.6,4384.5,0.6563]
[1756534825040,0.68065331,4384.6,4384.3,0.233]
[1756534825041,0.1976,4384.4,4384.3,0.233]
[1756534825236,0.68065331,4384.4,4384.3,0.233]
[1756534825438,0.40125331,4384.4,4384.3,0.233]
[1756534825638,0.1976,4384.0,4383.9,0.4232]
[1756534825838,0.477,4384.0,4383.9,0.6562]
[1756534826143,0.68065331,4384.0,4383.9,0.233]
[1756534827442,0.68065331,4384.0,4383.8,3.2078]
[1756534827636,3.2078,4384.6,4383.8,3.2078]
[1756534827637,0.68065331,4383.9,4383.8,3.2078]
[1756534827942,0.68065331,4383.9,4383.8,3.864]
[1756534828143,0.477,4383.9,4383.8,3.864]
[1756534828343,0.68073145,4383.9,4383.8,3.864]
[1756534828943,0.68073145,4383.9,4383.8,3.4408]
[1756534830534,0.68073145,4383.9,4383.8,3.864]
[1756534830733,0.68073145,4383.9,4383.8,3.4058]
[1756534830938,0.2794,4383.8,4383.6,32.857]
[1756534831146,0.68073145,4383.7,4383.6,32.857]
[1756534831343,0.68073145,4383.7,4383.6,33.09]
[1756534831844,0.68073145,4383.7,4383.6,33.3152]
[1756534832645,0.68073145,4383.7,4383.6,33.0822]
[1756534832847,0.68073145,4383.7,4383.6,33.09]
[1756534833043,0.68073145,4383.7,4383.6,33.3152]
[1756534833843,0.68073145,4383.7,4383.6,33.0822]
[1756534834142,0.20373145,4383.7,4383.6,33.3152]
[1756534834347,0.20373145,4383.7,4383.6,37.54332]
[1756534834550,0.2794,4384.4,4384.3,0.4232]
[1756534834747,0.19913169,4384.4,4384.3,0.6562]
[1756534834949,0.19913169,4384.4,4384.3,0.4232]
[1756534835148,0.67613169,4384.4,4384.3,0.6562]
[1756534835346,0.19913169,4384.4,4384.3,0.4232]
[1756534835549,0.19913169,4384.4,4384.3,0.6562]
[1756534837551,0.2832,4385.1,4384.3,0.431]
[1756534837745,0.19909744,4385.0,4384.8,0.225]
[1756534837944,0.2832,4385.1,4384.9,0.6523]
[1756534838152,0.19909603,4385.0,4384.9,0.4273]
[1756534838348,0.19909299,4385.0,4384.9,0.4273]
[1756534838654,0.2832,4385.1,4384.9,0.6523]
[1756534838858,0.48222912,4385.0,4384.9,0.6523]
[1756534839552,0.48222248,4385.0,4384.9,0.6523]
[1756534839750,0.19902248,4385.0,4384.9,0.6523]
[1756534840151,0.2832,4385.7,4385.0,0.225]
[1756534840455,0.4801,4385.5,4385.4,3.2078]
[1756534840653,0.6790409,4385.5,4385.4,3.2078]
[1756534840955,0.6790409,4385.5,4384.4,0.4105]
[1756534840956,0.1969,4384.5,4384.4,3.2078]
[1756534841146,0.4801,4384.5,4384.4,3.8601]
[1756534841344,0.39581803,4384.5,4384.4,4.02581623]
[1756534841550,0.2832,4385.6,4384.5,0.225]
[1756534841752,0.1969,4384.6,4384.5,0.4203]
[1756534841946,0.2832,4384.6,4384.5,0.6523]
[1756534842150,0.19891756,4384.6,4384.5,0.6523]
[1756534842357,3.2078,4385.7,4384.6,0.225]
[1756534842358,0.2832,4385.6,4384.6,0.225]
[1756534842558,0.4801,4384.8,4384.7,0.1953]
[1756534842859,0.4801,4384.5,4384.4,3.79381623]
[1756534843358,0.4801,4384.5,4384.4,4.02581623]
[1756534845563,3.2078,4385.7,4384.4,4.02581623]
[1756534845764,0.2832,4385.5,4384.5,0.225]
[1756534845959,0.4801,4384.7,4384.6,0.6523]
[1756534846158,0.67899809,4384.7,4384.6,0.6523]
[1756534846356,0.19889809,4384.7,4384.6,0.6523]
[1756534847161,0.2832,4385.6,4384.7,0.225]
[1756534847362,0.4801,4385.1,4385.0,0.4203]
[1756534847663,0.67892299,4385.1,4385.0,0.6523]
[1756534848965,0.19882299,4385.1,4385.0,0.6523]
[1756534849464,0.67892299,4385.1,4385.0,0.6523]
[1756534849665,0.4801,4385.1,4385.0,0.6523]
[1756534849964,3.2078,4386.2,4385.0,0.4203]
[1756534850161,0.70997295,4386.1,4385.2,0.225]
[1756534850362,0.70997295,4386.1,4384.9,3.2078]
[1756534850363,0.2832,4385.9,4385.4,0.225]
[1756534850562,0.4801,4385.6,4385.5,0.4273]
[1756534850767,0.67882422,4385.6,4385.5,0.232]
[1756534851463,0.67882422,4385.6,4385.5,0.6523]
[1756534852269,0.19872422,4385.6,4385.5,0.6523]
[1756534853470,3.2078,4386.8,4385.5,0.4273]
[1756534853670,0.70983998,4386.7,4385.6,0.225]
[1756534853872,0.2832,4386.5,4385.6,0.225]
[1756534854063,0.19864998,4386.4,4385.6,0.225]
[1756534854264,0.19864998,4386.3,4385.6,0.225]
[1756534854568,0.48184998,4386.2,4385.6,0.225]
[1756534854766,0.67874998,4386.1,4386.0,0.4203]
[1756534854969,0.67874998,4386.1,4386.0,0.6523]
[1756534858876,0.67874998,4386.1,4386.0,0.4203]
[1756534859067,0.67874998,4386.1,4386.0,0.6523]
[1756534860371,0.3939057,4386.1,4385.9,3.2078]
[1756534860573,0.2832,4385.5,4385.4,3.6281]
[1756534860774,0.2832,4385.5,4385.4,3.8601]
[1756534860966,3.2078,4386.8,4385.5,0.225]
[1756534861168,0.1969,4385.6,4385.5,0.4203]
[1756534861367,0.4801,4385.6,4385.5,0.6523]
[1756534861564,0.2832,4386.7,4385.5,0.4273]
[1756534861768,3.2078,4386.8,4385.5,0.4273]
[1756534861769,0.19707938,4386.6,4386.4,0.41031]
[1756534861978,1.22681229,4388.0,4387.2,0.1953]
[1756534862175,3.2078,4388.3,4387.3,0.4975]
[1756534862176,0.1969,4387.4,4387.3,0.4975]
[1756534862480,0.1969,4387.4,4387.3,0.5775]
[1756534863080,0.1969,4387.4,4387.3,0.232]
[1756534863373,0.1969,4387.4,4387.3,0.7295]
[1756534864072,0.4801,4387.4,4387.3,0.7295]
[1756534865480,0.2832,4388.1,4387.3,4.42323]
[1756534865774,3.2078,4389.1,4388.1,0.3022]
[1756534865979,0.19674588,4389.0,4388.3,0.3022]
[1756534866175,0.19674588,4388.9,4388.3,0.3022]
[1756534866380,0.1969,4388.9,4388.8,0.4975]
[1756534866579,0.39349403,4388.9,4388.8,0.7305]
[1756534866772,0.1969,4388.9,4388.8,0.7305]
[1756534867775,0.4997,4388.9,4388.8,0.7305]
[1756534868376,0.1969,4388.9,4388.8,0.7305]
[1756534868572,2.899,4389.1,4388.8,0.7305]
[1756534868771,1.22681229,4391.3,4390.1,0.1954]
[1756534868772,2.3958,4390.2,4390.1,0.1954]
[1756534869076,2.3958,4390.2,4390.1,0.236]
[1756534869382,2.3958,4390.2,4390.1,0.7351]
[1756534870575,2.3958,4390.2,4390.1,0.4991]
[1756534870770,0.193,4389.7,4389.6,3.7069]
[1756534871076,0.4958,4389.7,4389.6,3.9429]
[1756534871581,2.3958,4390.2,4390.1,0.4991]
[1756534871784,2.3958,4390.2,4390.1,0.7351]
[1756534873177,2.3958,4390.2,4390.1,0.4991]
[1756534873378,2.3958,4390.2,4389.7,0.3037]
[1756534873583,2.3958,4390.2,4390.1,0.236]
[1756534874079,2.3958,4390.2,4390.1,3.9429]
[1756534874882,1.9,4390.2,4390.1,3.9429]
[1756534877081,2.3958,4390.2,4390.1,3.9429]
[1756534877282,2.3958,4390.2,4390.1,3.4438]
[1756534877790,2.3958,4390.2,4390.1,3.9429]
[1756534878183,2.3958,4390.2,4390.1,3.6392]
[1756534879393,3.2078,4391.3,4390.1,3.9429]
[1756534879694,0.3028,4391.2,4390.2,0.3037]
[1756534880788,0.193,4390.3,4390.1,3.2078]
[1756534880988,0.4958,4390.2,4390.1,3.7069]
[1756534881188,0.4958,4390.2,4390.1,3.9439]
[1756534881990,0.4958,4390.2,4390.1,3.9429]
[1756534882190,0.52688613,4390.2,4390.1,3.7069]
[1756534882397,0.52688613,4390.2,4390.1,3.9429]
[1756534882691,0.52688613,4390.2,4390.1,3.2078]
[1756534882896,0.52688613,4390.2,4390.1,3.4438]
[1756534884293,0.52688613,4390.2,4390.1,3.2078]
[1756534884497,0.52688613,4390.2,4390.1,3.4438]
[1756534884793,4.03108613,4390.2,4389.6,3.2078]
[1756534884996,0.3028,4389.6,4388.9,3.2078]
[1756534885192,0.4958,4389.0,4388.9,3.2078]
[1756534885395,0.4958,4389.0,4388.9,3.4438]
[1756534885592,0.193,4389.0,4388.8,32.834]
[1756534885790,0.03108613,4389.3,4388.8,32.834]
[1756534885791,0.3028,4388.9,4388.8,32.834]
[1756534885991,0.3028,4388.9,4388.8,33.07]
[1756534886192,0.33388613,4388.9,4388.8,33.07]
[1756534886799,0.33388613,4388.9,4388.8,32.834]
[1756534886998,0.33388613,4388.9,4388.8,33.07]
[1756534887295,4.33388613,4388.9,4388.8,33.07]
[1756534887698,5.17963191,4388.9,4388.8,33.07]
[1756534887895,0.193,4388.5,4388.4,3.2078]
[1756534888097,0.4958,4388.5,4388.4,3.4438]
[1756534888298,0.72277312,4388.5,4388.4,3.4438]
[1756534888604,0.72277312,4388.5,4388.4,3.2078]
[1756534888902,0.72277312,4388.5,4388.4,3.4438]
[1756534889296,1.37295,4388.5,4388.4,3.4438]
[1756534890093,1.37295,4388.5,4387.9,0.3037]
[1756534890303,0.4958,4388.0,4387.9,0.4991]
[1756534890499,0.4958,4388.0,4387.9,0.7351]
[1756534890704,0.69322228,4388.0,4387.9,0.7351]
[1756534891298,0.69321965,4388.0,4387.9,0.7351]
[1756534891504,0.72430578,4388.0,4387.9,0.7351]
[1756534894106,0.7245104,4388.0,4387.9,0.7351]
[1756534896902,0.2287104,4388.0,4387.9,0.7351]
[1756534897510,0.7131104,4388.0,4387.9,0.7351]
[1756534899108,0.51548613,4388.0,4387.9,0.7351]
[1756534901008,0.51548613,4388.0,4387.9,0.4991]
[1756534901207,0.51548613,4388.0,4387.9,0.7341]
[1756534909116,0.71304666,4388.0,4387.9,0.7341]
[1756534912018,0.71318741,4388.0,4387.9,0.7341]
[1756534912424,0.71318741,4388.0,4387.9,0.4991]
[1756534912711,0.2858,4387.9,4387.7,3.2078]
[1756534912916,0.2858,4387.9,4387.4,32.812]
[1756534912917,0.68226523,4387.8,4387.4,32.812]
[1756534913109,0.4844,4387.5,4387.4,32.812]
[1756534913308,0.68226523,4387.5,4387.4,32.812]
[1756534913520,0.71335136,4387.5,4387.4,32.812]
[1756534913718,0.71352713,4387.5,4387.4,33.047]
[1756534916022,0.71352713,4387.5,4386.6,3.6945]
[1756534916023,0.1986,4386.7,4386.6,3.6945]
[1756534916218,0.682441,4386.7,4386.6,3.401]
[1756534916523,0.71352713,4386.7,4386.6,3.636]
[1756534917322,0.71352713,4386.7,4386.6,3.9295]
[1756534918819,0.51548613,4386.7,4386.6,3.9295]
[1756534919320,0.71369858,4386.7,4386.6,3.9295]
[1756534919915,0.71369858,4386.7,4386.6,3.401]
[1756534920120,0.71369858,4386.7,4386.6,3.635]
[1756534920423,0.71369858,4386.7,4386.6,3.9285]
[1756534921421,0.51548613,4386.7,4386.6,3.9285]
[1756534921620,0.7135533,4386.7,4386.6,3.9285]
[1756534923916,0.71335994,4386.7,4386.6,3.9285]
[1756534924833,0.71335994,4386.7,4386.6,3.6945]
[1756534925030,0.71335994,4386.7,4386.6,3.4418]
[1756534925225,0.71335994,4386.7,4386.6,0.234]
[1756534926525,0.71335994,4386.7,4386.6,0.5275]
[1756534926825,0.71335994,4386.7,4386.6,0.7207]
[1756534932040,0.71298763,4386.7,4386.6,0.7207]
[1756534932436,0.51548613,4386.7,4386.6,0.7207]
[1756534932637,0.7129921,4386.7,4386.6,0.7207]
[1756534939343,0.2285921,4386.7,4386.6,0.7207]
[1756534939536,0.2782,4387.9,4386.9,0.0535]
[1756534939843,3.2078,4388.3,4386.7,0.41029]
[1756534939844,0.2782,4388.2,4387.3,0.0535]
[1756534940043,0.2782,4388.2,4387.2,3.2078]
[1756534940044,0.4669,4388.2,4388.1,0.0856]
[1756534940244,0.4669,4388.2,4388.1,0.1391]
[1756534940444,3.2078,4388.3,4388.1,0.1391]
[1756534940638,3.486,4388.3,4388.2,0.3221]
[1756534940838,3.6747,4388.3,4388.2,0.3221]
[1756534941443,0.4669,4388.3,4388.2,0.3731]
[1756534946947,0.4669,4388.3,4388.2,0.1391]
[1756534947147,0.4669,4388.3,4388.2,0.3721]
[1756534948750,0.2782,4388.3,4388.2,0.3721]
[1756534948953,0.4669,4388.9,4388.8,0.0856]
[1756534949152,0.4669,4388.9,4388.8,0.1391]
[1756534950956,0.2782,4388.9,4388.8,0.1391]
[1756534951756,0.2782,4388.9,4387.9,0.16450566]
[1756534951757,0.2782,4388.8,4388.2,0.0535]
[1756534952053,0.1887,4388.1,4387.4,3.2613]
[1756534952351,0.1887,4388.1,4387.0,0.0535]
[1756534952352,0.4669,4387.6,4387.0,0.0535]
[1756534952555,0.66028262,4387.6,4386.9,3.2078]
[1756534952749,1.63574972,4389.9,4386.1,32.826]
[1756534952750,0.4669,4386.6,4386.5,0.1391]
[1756534952950,0.4669,4386.6,4386.5,0.3721]
[1756534953457,0.4669,4386.6,4386.5,0.1391]
[1756534953654,0.4669,4386.6,4386.5,0.3731]
[1756534954659,0.1887,4386.6,4386.5,0.234]
[1756534954859,0.1887,4386.6,4386.5,0.3731]
[1756534955351,0.4669,4386.6,4386.5,0.3731]
[1756534957458,0.4669,4386.6,4386.5,0.3196]
[1756534957654,0.4669,4386.6,4386.4,3.2078]
[1756534957655,0.4755,4386.5,4386.4,3.2078]
[1756534957854,0.4755,4386.5,4386.4,3.4418]
[1756534959454,0.4755,4386.5,4386.4,3.5822]
[1756534959657,3.2078,4387.5,4386.4,3.5822]
[1756534959960,0.2892,4387.3,4386.5,0.054]
[1756534960159,0.19354092,4387.2,4386.5,0.054]
[1756534960354,0.2892,4387.1,4386.5,0.054]
[1756534960561,0.37984092,4387.0,4386.9,0.0864]
[1756534960754,0.66904092,4387.0,4386.9,0.3744]
[1756534963655,0.4755,4387.0,4386.9,0.3744]
[1756534963960,0.66900562,4387.0,4386.9,0.3204]
[1756534964260,0.66900562,4387.0,4386.9,0.234]
[1756534964463,0.66901782,4387.0,4386.9,0.234]
[1756534964861,0.66901782,4387.0,4386.9,0.3204]
[1756534965060,0.66901782,4387.0,4386.9,0.3744]
[1756534965557,0.19351782,4387.0,4386.9,0.1404]
[1756534965754,0.2892,4387.3,4386.9,0.3204]
[1756534965956,0.19353472,4387.2,4387.1,0.0864]
[1756534966158,0.19353472,4387.2,4387.1,0.1404]
[1756534966358,0.48273472,4387.2,4387.1,0.1404]
[1756534966667,0.19353472,4387.2,4387.1,0.1404]
[1756534966854,0.2892,4387.9,4387.1,4.31433999]
[1756534967053,0.2892,4387.9,4387.7,0.1404]
[1756534967054,0.19353008,4387.8,4387.7,0.1404]
[1756534967364,0.19353008,4387.8,4387.7,0.3744]
[1756534967564,0.2892,4387.9,4387.7,0.3744]
[1756534967863,0.4755,4387.9,4387.8,0.1404]
[1756534968060,0.66906723,4387.9,4387.8,0.1404]
[1756534970365,0.66906723,4387.9,4387.8,0.3744]
[1756534971065,0.4755,4387.9,4387.8,0.3744]
[1756534981170,0.4755,4387.9,4387.8,0.3204]
[1756534981670,0.4755,4387.9,4387.8,0.234]
[1756534983974,0.4755,4387.9,4387.8,0.233]
[1756534984666,0.4755,4387.9,4387.4,3.2618]
[1756534984872,0.4755,4387.5,4387.4,3.2078]
[1756534985172,0.4755,4387.5,4387.4,3.4408]
[1756534986368,0.4755,4387.5,4387.4,3.2078]
[1756534986576,0.4755,4387.0,4386.9,3.2078]
[1756534986768,0.4755,4387.0,4386.9,3.4408]
[1756534987269,0.4755,4387.0,4386.9,3.4947]
[1756534987466,0.4755,4387.0,4386.9,3.5809]
[1756534988868,0.4755,4387.0,4386.9,3.527]
[1756534989270,0.66910186,4387.0,4386.9,3.527]
[1756534989576,0.66910186,4387.0,4386.9,3.5809]
[1756534990175,0.2937,4388.3,4387.0,0.0539]
[1756534990369,0.193676,4388.2,4387.0,0.28181]
[1756534990677,0.691276,4388.1,4388.0,0.0862]
[1756534990976,0.691276,4388.1,4388.0,0.3192]
[1756534992279,0.691276,4388.1,4388.0,0.233]
[1756534993770,0.691276,4388.1,4388.0,0.2869]
[1756534993969,0.691276,4388.1,4388.0,0.3731]
[1756534994275,0.193676,4388.1,4388.0,4.60099]
[1756534994476,0.2937,4388.7,4388.6,0.0862]
[1756534994778,0.48751112,4388.7,4388.6,0.3731]
[1756534995275,0.69141112,4388.7,4388.6,0.3731]
[1756534995978,0.69141112,4388.7,4388.6,0.54131582]